bitfinex-derivatives/quotes_SOLF0:USTF0_20260116
["timestamp","ask_amount","ask_price","bid_price","bid_amount"]
[1768545582399,5.15202534,143.24,143.18,32.75448942]
[1768545582704,6.2856,143.25,143.18,32.75448942]
[1768545583003,5.15202534,143.24,143.18,32.75448942]
[1768545583302,6.2856,143.25,143.18,32.75448942]
[1768545583502,5.15199393,143.24,143.18,32.75448942]
[1768545583703,6.2856,143.25,143.18,32.75448942]
[1768545583908,5.15233528,143.24,143.18,32.75448942]
[1768545584108,6.2856,143.25,143.18,32.75448942]
[1768545584311,5.15224834,143.24,143.18,32.75448942]
[1768545584610,19.18498629,143.26,143.18,32.75448942]
[1768545584809,5.1521544,143.25,143.18,32.75448942]
[1768545585009,5.1521544,143.24,143.18,32.75448942]
[1768545585212,19.18498629,143.26,143.18,32.75448942]
[1768545585511,5.15233835,143.25,143.18,32.75448942]
[1768545585707,5.15233835,143.24,143.18,32.75448942]
[1768545585902,19.18498629,143.26,143.18,32.75448942]
[1768545586102,5.15235169,143.25,143.18,32.75448942]
[1768545586302,5.15235169,143.24,143.18,32.75448942]
[1768545586498,19.18498629,143.26,143.18,32.75448942]
[1768545586705,5.15253328,143.25,143.18,32.75448942]
[1768545586905,5.15253328,143.24,143.18,32.75448942]
[1768545587106,19.18498629,143.26,143.18,32.75448942]
[1768545587407,5.15275956,143.25,143.18,32.75448942]
[1768545587606,5.15275956,143.24,143.18,32.75448942]
[1768545587807,19.18498629,143.26,143.18,32.75448942]
[1768545588006,5.15281209,143.25,143.18,32.75448942]
[1768545588207,5.15281209,143.24,143.18,32.75448942]
[1768545588404,19.18498629,143.26,143.18,32.75448942]
[1768545588607,5.15307316,143.25,143.18,32.75448942]
[1768545588809,5.15307316,143.24,143.18,39.04298942]
[1768545589010,17.59632223,143.26,143.18,39.04298942]
[1768545589211,5.15307316,143.25,143.18,39.04298942]
[1768545589414,5.15307316,143.24,143.18,39.04298942]
[1768545589605,17.59632223,143.26,143.18,39.04298942]
[1768545589807,5.15340604,143.25,143.18,39.04298942]
[1768545590104,5.15340604,143.24,143.18,39.04298942]
[1768545590300,17.59632223,143.26,143.18,39.04298942]
[1768545590507,5.15377634,143.25,143.18,39.04298942]
[1768545590801,5.15377634,143.24,143.18,39.04298942]
[1768545591002,17.59632223,143.26,143.18,39.04298942]
[1768545591201,5.15377634,143.25,143.18,39.04298942]
[1768545591510,5.15377634,143.24,143.18,39.04298942]
[1768545591708,17.59632223,143.26,143.18,39.04298942]
[1768545591913,5.15476941,143.25,143.18,39.04298942]
[1768545592112,5.15476941,143.24,143.18,39.04298942]
[1768545592314,17.59632223,143.26,143.18,39.04298942]
[1768545592517,5.15527959,143.25,143.18,39.04298942]
[1768545592817,5.15527959,143.24,143.18,39.04298942]
[1768545593022,17.59632223,143.26,143.18,39.04298942]
[1768545593314,5.15527959,143.25,143.18,39.04298942]
[1768545593519,5.15527959,143.24,143.18,39.04298942]
[1768545593821,17.59632223,143.26,143.18,39.04298942]
[1768545594018,5.15584533,143.25,143.18,39.04298942]
[1768545594320,5.15584533,143.24,143.18,39.04298942]
[1768545594515,17.59632223,143.26,143.18,39.04298942]
[1768545594715,5.15648013,143.25,143.18,39.04298942]
[1768545594911,5.15648013,143.24,143.18,39.04298942]
[1768545595119,17.59632223,143.26,143.18,39.04298942]
[1768545595419,5.15721329,143.25,143.18,39.04298942]
[1768545595622,5.15721329,143.24,143.18,39.04298942]
[1768545595822,17.59632223,143.26,143.18,39.04298942]
[1768545596019,5.15721329,143.25,143.18,39.04298942]
[1768545596219,5.15721329,143.24,143.18,39.04298942]
[1768545596518,17.59632223,143.26,143.18,39.04298942]
[1768545596725,5.15805517,143.25,143.18,39.04298942]
[1768545596922,5.15805517,143.24,143.18,39.04298942]
[1768545597123,17.59632223,143.26,143.18,39.04298942]
[1768545597323,5.15892435,143.25,143.18,39.04298942]
[1768545597516,5.15892435,143.24,143.18,39.04298942]
[1768545597712,17.59632223,143.26,143.18,39.04298942]
[1768545597917,5.15898547,143.25,143.18,39.04298942]
[1768545598221,17.59632223,143.26,143.18,39.04298942]
[1768545598222,5.15898547,143.24,143.18,39.04298942]
[1768545598418,5.15898547,143.23,143.18,39.04298942]
[1768545598621,17.59632223,143.26,143.18,39.04298942]
[1768545598925,5.16007944,143.25,143.18,39.04298942]
[1768545599116,5.16007944,143.24,143.18,39.04298942]
[1768545599311,5.16007944,143.23,143.18,39.04298942]
[1768545599518,17.59632223,143.26,143.18,39.04298942]
[1768545599717,5.16141668,143.25,143.18,39.04298942]
[1768545600019,5.16141668,143.24,143.18,39.04298942]
[1768545600220,5.16141668,143.23,143.18,39.04298942]
[1768545600420,17.59632223,143.26,143.18,39.04298942]
[1768545600622,5.16130142,143.25,143.18,39.04298942]
[1768545600822,5.16130142,143.24,143.18,39.04298942]
[1768545601024,5.16134263,143.23,143.18,39.04298942]
[1768545601224,17.59632223,143.26,143.18,39.04298942]
[1768545601425,5.16193782,143.25,143.18,39.04298942]
[1768545601619,5.16193782,143.24,143.18,39.04298942]
[1768545601825,5.16193782,143.23,143.18,39.04298942]
[1768545602125,17.59632223,143.26,143.18,39.04298942]
[1768545602325,5.17738878,143.25,143.18,39.04298942]
[1768545602524,5.17738878,143.24,143.18,39.04298942]
[1768545602726,5.17738878,143.23,143.18,39.04298942]
[1768545602927,17.59632223,143.26,143.18,39.04298942]
[1768545603126,5.17733741,143.25,143.18,39.04298942]
[1768545603331,5.17733741,143.24,143.18,39.04298942]
[1768545603627,5.17733741,143.23,143.18,39.04298942]
[1768545603923,17.59632223,143.26,143.18,39.04298942]
[1768545604128,5.17758697,143.25,143.18,39.04298942]
[1768545604427,5.17758697,143.24,143.18,39.04298942]
[1768545604621,5.17758697,143.23,143.18,39.04298942]
[1768545604822,17.59632223,143.26,143.18,39.04298942]
[1768545605027,5.17864739,143.25,143.18,39.04298942]
[1768545605227,5.17864739,143.24,143.18,39.04298942]
[1768545605429,5.17864739,143.23,143.18,39.04298942]
[1768545605629,17.59632223,143.26,143.18,39.04298942]
[1768545605826,5.17871838,143.25,143.18,39.04298942]
[1768545606025,5.17871838,143.24,143.18,39.04298942]
[1768545606225,5.17871838,143.23,143.18,39.04298942]
[1768545606525,17.59632223,143.26,143.18,39.04298942]
[1768545606728,5.17876491,143.25,143.18,39.04298942]
[1768545606930,5.17876491,143.24,143.18,39.04298942]
[1768545607130,5.17876491,143.23,143.18,39.04298942]
[1768545607434,17.59632223,143.26,143.18,39.04298942]
[1768545607629,5.17882344,143.25,143.18,39.04298942]
[1768545607927,5.17882344,143.24,143.18,39.04298942]
[1768545608127,5.17882344,143.23,143.18,39.04298942]
[1768545608325,17.59632223,143.26,143.18,39.04298942]
[1768545608528,5.1789474,143.25,143.18,39.04298942]
[1768545608726,5.1789474,143.24,143.18,39.04298942]
[1768545608922,5.1789474,143.23,143.18,39.04298942]
[1768545609128,17.59632223,143.26,143.18,39.04298942]
[1768545609336,5.17897494,143.25,143.18,39.04298942]
[1768545609536,5.17897494,143.24,143.18,39.04298942]
[1768545609832,5.17897494,143.23,143.18,39.04298942]
[1768545610026,17.59632223,143.26,143.18,39.04298942]
[1768545610224,5.17899889,143.25,143.18,39.04298942]
[1768545610429,5.17899889,143.24,143.18,39.04298942]
[1768545610623,5.17899889,143.23,143.18,39.04298942]
[1768545610830,17.59632223,143.26,143.18,39.04298942]
[1768545611135,5.17908834,143.25,143.18,39.04298942]
[1768545611332,5.17908834,143.24,143.18,39.04298942]
[1768545611525,5.17908834,143.23,143.18,39.04298942]
[1768545611730,17.59632223,143.26,143.18,39.04298942]
[1768545611936,5.17910996,143.25,143.18,39.04298942]
[1768545612135,5.17910996,143.24,143.18,39.04298942]
[1768545612434,5.17910996,143.23,143.18,39.04298942]
[1768545612735,17.59632223,143.26,143.18,39.04298942]
[1768545612934,5.17918418,143.25,143.18,39.04298942]
[1768545613235,5.17918418,143.24,143.18,39.04298942]
[1768545613437,5.17918418,143.23,143.18,39.04298942]
[1768545613735,17.59632223,143.26,143.18,39.04298942]
[1768545613937,5.17931174,143.25,143.18,39.04298942]
[1768545614239,5.17931174,143.24,143.18,39.04298942]
[1768545614436,5.17931174,143.23,143.18,39.04298942]
[1768545614632,17.59632223,143.26,143.18,39.04298942]
[1768545614827,5.1793269,143.25,143.18,39.04298942]
[1768545615033,16.7341916,143.28,143.18,39.04298942]
[1768545615328,15.1446209,143.28,143.2,34.5200931]
[1768545615529,2.818e-05,143.28,143.2,34.5200931]
[1768545616131,2.818e-05,143.28,143.22,34.5200931]
[1768545620141,2.818e-05,143.28,143.22,40.8067931]
[1768545631050,2.818e-05,143.28,143.24,34.85274656]
[1768545632256,2.818e-05,143.28,143.22,34.85274656]
[1768545634062,5.16106773,143.27,143.22,34.85274656]
[1768545634359,5.16106773,143.26,143.22,34.85274656]
[1768545634561,2.818e-05,143.28,143.22,34.85274656]
[1768545634760,5.16165691,143.27,143.22,34.85274656]
[1768545634960,5.16165691,143.26,143.22,34.85274656]
[1768545635161,2.818e-05,143.28,143.22,34.85274656]
[1768545635363,5.1616303,143.27,143.22,34.85274656]
[1768545635564,5.1616303,143.26,143.22,34.85274656]
[1768545635767,2.818e-05,143.28,143.22,34.85274656]
[1768545636066,5.16164547,143.27,143.22,34.85274656]
[1768545636364,5.16164547,143.26,143.22,34.85274656]
[1768545636564,2.818e-05,143.28,143.22,34.85274656]
[1768545636765,5.16211387,143.27,143.22,34.85274656]
[1768545636959,5.16211387,143.26,143.22,34.85274656]
[1768545637165,2.818e-05,143.28,143.22,34.85274656]
[1768545637360,5.16220372,143.27,143.22,34.85274656]
[1768545637562,5.16220372,143.26,143.22,34.85274656]
[1768545637763,2.818e-05,143.28,143.22,34.85274656]
[1768545637968,5.16220701,143.27,143.22,34.85274656]
[1768545638262,5.16220701,143.26,143.22,34.85274656]
[1768545638458,2.818e-05,143.28,143.22,34.85274656]
[1768545638663,5.16219991,143.27,143.22,34.85274656]
[1768545638863,5.16219991,143.26,143.22,34.85274656]
[1768545639062,2.818e-05,143.28,143.22,34.85274656]
[1768545639267,5.16290744,143.27,143.22,34.85274656]
[1768545639467,5.16290744,143.26,143.22,34.85274656]
[1768545639767,2.818e-05,143.28,143.22,34.85274656]
[1768545640069,5.16295542,143.27,143.22,34.85274656]
[1768545640367,5.16295542,143.26,143.22,34.85274656]
[1768545640568,2.818e-05,143.28,143.22,34.85274656]
[1768545640765,5.16396989,143.27,143.22,34.85274656]
[1768545640965,2.818e-05,143.28,143.24,34.85274656]
[1768545642868,2.818e-05,143.28,143.24,41.13854656]
[1768545650876,2.818e-05,143.28,143.24,34.85274656]
[1768545659487,2.818e-05,143.28,143.24,36.44051663]
[1768545662688,2.818e-05,143.28,143.24,34.85274656]
[1768545662891,2.818e-05,143.28,143.26,32.48037857]
[1768545664690,2.818e-05,143.28,143.21,25.287]
[1768545664691,2.818e-05,143.28,143.22,1.58777007]
[1768545665986,6.28432818,143.28,143.22,1.58777007]
[1768545666178,2.818e-05,143.28,143.21,1.58777007]
[1768545666689,2.818e-05,143.28,143.22,32.48037857]
[1768545668792,6.28432818,143.28,143.22,32.48037857]
[1768545669396,6.2851,143.26,143.22,32.48037857]
[1768545670088,39.69436508,143.28,143.22,32.48037857]
[1768545676999,6.28422818,143.28,143.22,32.48037857]
[1768545678098,7.87199825,143.28,143.22,32.48037857]
[1768545691608,6.28422818,143.28,143.22,32.48037857]
[1768545691810,7.87199825,143.28,143.22,32.48037857]
[1768545692014,6.28422818,143.28,143.22,32.48037857]
[1768545693920,2.818e-05,143.28,143.22,32.48037857]
[1768545697424,2.818e-05,143.28,143.24,31.68354073]
[1768545697616,2.818e-05,143.28,143.24,33.2713108]
[1768545698114,2.818e-05,143.28,143.24,37.96924073]
[1768545700917,2.818e-05,143.28,143.26,31.68354073]
[1768545702219,2.818e-05,143.28,143.26,37.96824073]
[1768545708829,34.465808,143.38,143.29,31.68354073]
[1768545709027,34.465808,143.36,143.29,31.68354073]
[1768545709230,1.58777007,143.35,143.29,31.68354073]
[1768545710225,34.465808,143.36,143.29,31.68354073]
[1768545710426,1.58777007,143.35,143.29,31.68354073]
[1768545711028,1.58777007,143.33,143.29,31.68354073]
[1768545711428,1.58777007,143.33,143.26,35.00545112]
[1768545712331,33.58697397,143.33,143.26,35.00545112]
[1768545713334,33.58697397,143.33,143.26,41.29035112]
[1768545718337,1.58777007,143.31,143.26,35.00545112]
[1768545719336,1.5882605,143.31,143.26,35.00545112]
[1768545719935,31.9992039,143.32,143.26,35.00545112]
[1768545720935,33.5874644,143.31,143.24,6.2857]
[1768545721238,33.5874644,143.31,143.24,41.29115112]
[1768545721738,33.5874644,143.31,143.24,35.00545112]
[1768545722433,1.5882605,143.29,143.24,35.00545112]
[1768545723437,31.9992039,143.29,143.24,35.00545112]
[1768545723637,33.5874644,143.3,143.24,35.00545112]
[1768545726147,31.9992039,143.32,143.24,41.29065112]
[1768545726338,1.5882605,143.3,143.24,41.29065112]
[1768545726535,33.5874644,143.31,143.24,41.29065112]
[1768545728945,33.5874644,143.31,143.24,35.00545112]
[1768545737647,31.9992039,143.31,143.24,35.00545112]
[1768545741356,33.18101963,143.32,143.24,35.00545112]
[1768545741545,1.5882605,143.33,143.24,41.29065112]
[1768545741746,34.76928013,143.33,143.24,41.29065112]
[1768545745358,34.76928013,143.33,143.25,38.3642418]
[1768545750059,41.05078013,143.33,143.25,38.3642418]
[1768545756961,41.05078013,143.33,143.25,32.0794418]
[1768545760667,36.44529083,143.31,143.23,35.12356588]
[1768545761165,36.44529083,143.29,143.23,35.12356588]
[1768545766271,34.85703033,143.29,143.23,35.12356588]
[1768545766460,6.2824,143.31,143.23,41.40896588]
[1768545766461,34.85703033,143.31,143.23,41.40896588]
[1768545768261,34.85703033,143.31,143.25,35.12356588]
[1768545769272,34.85703033,143.33,143.25,35.12356588]
[1768545769967,34.85703033,143.33,143.25,41.40826588]
[1768545778878,34.85703033,143.33,143.26,38.56367105]
[1768545780977,34.85703033,143.33,143.27,6.2839]
[1768545781177,34.85703033,143.33,143.27,38.56327105]
[1768545782077,34.85703033,143.33,143.28,32.27937105]
[1768545782777,34.85703033,143.33,143.29,6.283]
[1768545789279,36.4448501,143.33,143.27,6.2837]
[1768545789578,35.30647445,143.3,143.25,32.27937105]
[1768545789980,35.30647445,143.3,143.25,38.56387105]
[1768545800903,35.30647445,143.31,143.25,38.56387105]
[1768545815399,34.8564132,143.34,143.27,35.73429026]
[1768545815604,36.44423297,143.34,143.27,35.73429026]
[1768545815806,34.8564132,143.31,143.23,35.73429026]
[1768545816009,34.8564132,143.29,143.23,35.73429026]
[1768545816505,97.6973,143.35,143.23,35.73429026]
[1768545816506,36.44423297,143.28,143.23,35.73429026]
[1768545818909,36.44423297,143.28,143.21,42.02059026]
[1768545828821,34.8564132,143.28,143.21,42.02059026]
[1768545837223,37.32461521,143.3,143.22,41.43553224]
[1768545837424,37.32461521,143.3,143.22,35.14943224]
[1768545839017,37.32461521,143.3,143.23,41.43503224]
[1768545841413,35.73679544,143.3,143.23,41.43503224]
[1768545850634,35.73679544,143.3,143.24,41.43463224]
[1768545856142,35.73679544,143.3,143.22,41.43523224]
[1768545856527,35.73679544,143.3,143.22,35.14943224]
[1768545857222,1.58860312,143.31,143.24,41.43433224]
[1768545857426,35.73679544,143.31,143.24,35.14943224]
[1768545858936,35.73679544,143.31,143.25,41.43413224]
[1768545860235,37.32539856,143.31,143.25,41.43413224]
[1768545862639,35.73679544,143.31,143.25,41.43413224]
[1768545870040,35.20719809,143.34,143.25,35.14943224]
[1768545870244,36.79580121,143.34,143.25,35.14943224]
[1768545871845,36.79580121,143.34,143.27,39.95303616]
[1768545873946,35.20719809,143.34,143.27,39.95303616]
[1768545874140,36.79580121,143.34,143.27,39.95303616]
[1768545881145,36.79580121,143.32,143.27,33.66923616]
[1768545881838,35.20719809,143.32,143.27,33.66923616]
[1768545882244,1.58860312,143.34,143.27,33.66923616]
[1768545882451,36.79580121,143.34,143.27,33.66923616]
[1768545883749,36.79580121,143.34,143.27,39.95313616]
[1768545883950,35.20719809,143.34,143.27,39.95313616]
[1768545892752,36.79580121,143.34,143.27,39.95313616]
[1768545896169,35.20719809,143.34,143.27,39.95313616]
[1768545900267,35.20719809,143.34,143.28,39.58142177]
[1768545900460,1.58860312,143.35,143.28,33.29802177]
[1768545901262,1.58860312,143.35,143.29,6.2829]
[1768545901471,35.07923664,143.36,143.29,39.58092177]
[1768545903869,35.07923664,143.36,143.29,33.29802177]
[1768545904270,33.491933,143.36,143.29,33.29802177]
[1768545904471,35.07923664,143.36,143.29,33.29802177]
[1768545905365,33.491933,143.36,143.29,33.29802177]
[1768545910969,33.491933,143.36,143.29,39.58102177]
[1768545916174,33.491933,143.39,143.31,33.29802177]
[1768545916365,35.07923664,143.39,143.31,33.29802177]
[1768545917072,33.491933,143.39,143.31,33.29802177]
[1768545917973,33.491933,143.43,143.31,33.29802177]
[1768545918179,35.07923664,143.43,143.36,33.29802177]
[1768545919278,33.491933,143.43,143.36,33.29802177]
[1768545919577,35.07923664,143.42,143.36,33.29802177]
[1768545924877,35.07923664,143.42,143.35,6.2803]
[1768545925080,1.58730364,143.4,143.35,38.87605096]
[1768545925681,35.42691595,143.4,143.35,38.87605096]
[1768545927385,35.42691595,143.4,143.33,39.14908979]
[1768545930183,1.58730364,143.4,143.33,39.14908979]
[1768545930986,35.98947763,143.4,143.33,39.14908979]
[1768545931582,35.98947763,143.43,143.35,32.86788979]
[1768545932677,35.98947763,143.42,143.35,32.86788979]
[1768545932880,35.98947763,143.42,143.35,39.14818979]
[1768545933778,35.98947763,143.42,143.36,39.14778979]
[1768545934682,34.40217399,143.42,143.36,39.14778979]
[1768545934885,35.98947763,143.42,143.36,39.14778979]
[1768545937890,35.98947763,143.42,143.36,32.86788979]
[1768545954696,34.40217399,143.42,143.36,32.86788979]
[1768545954900,35.98947763,143.42,143.36,32.86788979]
[1768545963304,35.9883593,143.42,143.36,32.86788979]
[1768545965608,35.9883593,143.42,143.34,32.51503727]
[1768545965609,42.2659593,143.42,143.34,32.51503727]
[1768545965812,40.67977399,143.42,143.34,32.51503727]
[1768545965998,42.2659593,143.42,143.34,32.51503727]
[1768545966806,42.2659593,143.42,143.34,38.79583727]
[1768545972408,42.2659593,143.42,143.34,32.51503727]
[1768545973413,31.69684528,143.39,143.32,38.79653727]
[1768545975114,1.58618531,143.38,143.32,32.51503727]
[1768545978012,32.57957817,143.38,143.32,32.51503727]
[1768545980313,1.58618531,143.36,143.32,32.51503727]
[1768545990320,1.58618531,143.38,143.32,32.51503727]
[1768545990518,5.14860351,143.37,143.32,32.51503727]
[1768545990717,1.58618531,143.38,143.32,32.51503727]
[1768545990924,5.14860349,143.37,143.32,32.51503727]
[1768545991224,30.14444861,143.38,143.32,32.51503727]
[1768545991424,5.14853928,143.37,143.32,32.51503727]
[1768545991725,30.14444861,143.38,143.32,32.51503727]
[1768545991935,5.14853928,143.37,143.32,38.79673727]
[1768545992132,30.14444861,143.38,143.32,38.79673727]
[1768545992426,5.14853944,143.37,143.32,38.79673727]
[1768545992628,30.14444861,143.38,143.32,38.79673727]
[1768545992827,5.14853944,143.37,143.32,38.79673727]
[1768545993022,30.14444861,143.38,143.32,38.79673727]
[1768545993221,5.14871369,143.37,143.32,38.79673727]
[1768545993422,30.14444861,143.38,143.32,38.79673727]
[1768545993624,5.14860511,143.37,143.32,38.79673727]
[1768545993922,30.14444861,143.38,143.32,38.79673727]
[1768545994122,5.14860511,143.37,143.32,38.79673727]
[1768545994426,1.58618531,143.37,143.32,38.79673727]
[1768546007238,32.73714858,143.4,143.32,38.79673727]
[1768546007444,5.15130591,143.39,143.32,38.79673727]
[1768546007739,5.15130591,143.38,143.32,38.79673727]
[1768546007941,5.15130591,143.37,143.32,38.79673727]
[1768546008146,28.04483389,143.4,143.32,38.79673727]
[1768546008343,5.1516649,143.39,143.32,38.79673727]
[1768546008643,5.1516649,143.38,143.32,38.79673727]
[1768546008845,5.1516649,143.37,143.32,38.79673727]
[1768546009142,28.04483389,143.4,143.32,38.79673727]
[1768546009344,5.15232964,143.39,143.32,38.79673727]
[1768546009537,5.15232964,143.38,143.32,38.79673727]
[1768546009839,5.15232964,143.37,143.32,38.79673727]
[1768546010144,28.04483389,143.4,143.32,38.79673727]
[1768546010340,5.15306413,143.39,143.32,38.79673727]
[1768546010540,5.15306413,143.38,143.32,38.79673727]
[1768546010841,5.15306413,143.37,143.32,38.79673727]
[1768546011038,28.04483389,143.4,143.32,38.79673727]
[1768546011237,5.15306413,143.39,143.32,38.79673727]
[1768546011430,5.15306413,143.38,143.32,38.79673727]
[1768546011633,5.15306413,143.37,143.32,38.79673727]
[1768546011836,28.04483389,143.4,143.32,38.79673727]
[1768546012036,5.15552408,143.39,143.32,38.79673727]
[1768546012242,5.15552408,143.38,143.32,38.79673727]
[1768546012440,28.04483389,143.4,143.32,38.79673727]
[1768546012441,5.15552408,143.37,143.32,38.79673727]
[1768546012643,28.04483389,143.4,143.32,38.79673727]
[1768546012844,5.15632375,143.39,143.32,38.79673727]
[1768546013146,5.15632375,143.38,143.32,38.79673727]
[1768546013343,5.15632375,143.37,143.32,38.79673727]
[1768546013543,28.04483389,143.4,143.32,38.79673727]
[1768546013843,5.15709884,143.39,143.32,38.79673727]
[1768546014040,5.15709884,143.38,143.32,38.79673727]
[1768546014228,5.15709884,143.37,143.32,38.79673727]
[1768546014430,28.04483389,143.4,143.32,38.79673727]
[1768546014635,5.15796907,143.39,143.32,38.79673727]
[1768546014835,5.15796907,143.38,143.32,38.79673727]
[1768546015133,5.15796907,143.37,143.32,38.79673727]
[1768546015330,28.04483389,143.4,143.32,38.79673727]
[1768546015529,5.15924793,143.39,143.32,38.79673727]
[1768546015743,5.15924793,143.38,143.32,38.79673727]
[1768546016044,5.15924793,143.37,143.32,38.79673727]
[1768546016240,5.16080086,143.36,143.32,38.79673727]
[1768546016541,28.04483389,143.4,143.32,38.79673727]
[1768546016745,5.16080306,143.39,143.32,38.79673727]
[1768546016943,5.16080306,143.38,143.32,38.79673727]
[1768546017241,5.16080306,143.37,143.32,38.79673727]
[1768546017539,5.16080306,143.36,143.32,38.79673727]
[1768546017740,28.04483389,143.4,143.32,38.79673727]
[1768546017941,5.1627529,143.39,143.32,38.79673727]
[1768546018141,5.1627529,143.38,143.32,38.79673727]
[1768546018339,5.1627529,143.37,143.32,38.79673727]
[1768546018541,5.1627529,143.36,143.32,38.79673727]
[1768546018740,28.04483389,143.4,143.32,38.79673727]
[1768546018935,5.16407017,143.39,143.32,38.79673727]
[1768546019145,5.16407017,143.38,143.32,38.79673727]
[1768546019336,5.16407017,143.37,143.32,38.79673727]
[1768546019541,5.16407017,143.36,143.32,38.79673727]
[1768546019744,28.04483389,143.4,143.32,38.79673727]
[1768546019942,30.07892469,143.39,143.32,38.79673727]
[1768546020148,5.16471796,143.38,143.32,38.79673727]
[1768546020346,5.16471796,143.37,143.32,38.79673727]
[1768546020544,5.16471796,143.36,143.32,38.79673727]
[1768546020842,24.91420673,143.39,143.32,38.79673727]
[1768546021032,5.16505169,143.38,143.32,38.79673727]
[1768546021235,5.16505169,143.37,143.32,38.79673727]
[1768546021537,5.16505169,143.36,143.32,38.79673727]
[1768546021734,24.91420673,143.39,143.32,38.79673727]
[1768546021940,5.16543344,143.38,143.32,38.79673727]
[1768546022141,5.16543344,143.37,143.32,38.79673727]
[1768546022438,5.16543344,143.36,143.32,38.79673727]
[1768546022637,24.91420673,143.39,143.32,38.79673727]
[1768546022844,5.1655806,143.38,143.32,38.79673727]
[1768546023142,5.1655806,143.37,143.32,38.79673727]
[1768546023340,5.1655806,143.36,143.32,38.79673727]
[1768546023546,24.91420673,143.39,143.32,38.79673727]
[1768546023746,5.16573749,143.38,143.32,38.79673727]
[1768546024045,5.16573749,143.37,143.32,38.79673727]
[1768546024241,5.16573749,143.36,143.32,38.79673727]
[1768546024542,24.91420673,143.39,143.32,38.79673727]
[1768546024740,5.16569785,143.38,143.32,38.79673727]
[1768546024938,5.16569785,143.37,143.32,38.79673727]
[1768546025143,5.16569785,143.36,143.32,38.79673727]
[1768546025444,24.91420673,143.39,143.32,38.79673727]
[1768546025642,5.16562331,143.38,143.32,38.79673727]
[1768546025842,5.16562331,143.37,143.32,38.79673727]
[1768546026046,5.16562331,143.36,143.32,38.79673727]
[1768546026245,24.91420673,143.39,143.32,38.79673727]
[1768546026435,5.16545761,143.38,143.32,38.79673727]
[1768546026638,5.16545761,143.37,143.32,38.79673727]
[1768546026845,5.16545761,143.36,143.32,38.79673727]
[1768546027145,24.91420673,143.39,143.32,38.79673727]
[1768546027440,5.16532307,143.38,143.32,38.79673727]
[1768546027644,5.16532307,143.37,143.32,38.79673727]
[1768546027846,5.16532307,143.36,143.32,38.79673727]
[1768546028046,24.91420673,143.39,143.32,38.79673727]
[1768546028243,5.16532087,143.38,143.32,38.79673727]
[1768546028444,5.16532087,143.37,143.32,38.79673727]
[1768546028649,5.16532087,143.36,143.32,32.51503727]
[1768546028842,24.91420673,143.39,143.32,32.51503727]
[1768546029039,5.16520407,143.38,143.32,32.51503727]
[1768546029347,5.16520407,143.37,143.32,32.51503727]
[1768546029547,5.16520407,143.36,143.32,32.51503727]
[1768546029757,24.91420673,143.39,143.32,32.51503727]
[1768546030048,29.12043165,143.38,143.32,32.51503727]
[1768546030253,5.16511836,143.37,143.32,32.51503727]
[1768546031849,28.94108497,143.37,143.32,32.51503727]
[1768546032046,5.16511836,143.36,143.32,32.51503727]
[1768546035351,5.16511836,143.35,143.32,32.51503727]
[1768546035552,23.51498443,143.39,143.32,32.51503727]
[1768546035845,5.1655127,143.38,143.32,32.51503727]
[1768546036049,5.1655127,143.37,143.32,32.51503727]
[1768546036244,5.1655127,143.36,143.32,32.51503727]
[1768546036450,23.51498443,143.39,143.32,32.51503727]
[1768546036451,5.1655127,143.35,143.32,32.51503727]
[1768546036652,24.93239861,143.38,143.32,32.51503727]
[1768546036852,5.16579804,143.37,143.32,32.51503727]
[1768546037055,5.16579804,143.36,143.32,32.51503727]
[1768546037352,5.16579804,143.35,143.32,32.51503727]
[1768546037551,31.21159861,143.38,143.32,32.51503727]
[1768546037756,5.16534734,143.37,143.32,32.51503727]
[1768546037949,5.16534734,143.36,143.32,32.51503727]
[1768546038149,5.16534734,143.35,143.32,32.51503727]
[1768546038456,31.21159861,143.38,143.32,32.51503727]
[1768546038853,5.16495239,143.37,143.32,32.51503727]
[1768546039053,5.16495239,143.36,143.32,32.51503727]
[1768546039351,5.16495239,143.35,143.32,32.51503727]
[1768546039555,5.16495239,143.34,143.3,27.90051195]
[1768546039851,24.68578679,143.36,143.3,27.90051195]
[1768546040048,5.16469692,143.35,143.3,27.90051195]
[1768546040244,24.68578679,143.36,143.3,27.90051195]
[1768546040245,5.16469692,143.34,143.3,27.90051195]
[1768546040456,24.68578679,143.36,143.3,27.90051195]
[1768546040650,5.16379174,143.35,143.3,27.90051195]
[1768546040850,5.16379174,143.34,143.3,27.90051195]
[1768546041151,24.68578679,143.36,143.3,27.90051195]
[1768546041347,5.16306658,143.35,143.3,27.90051195]
[1768546041547,5.16306658,143.34,143.3,27.90051195]
[1768546041756,24.68578679,143.36,143.3,27.90051195]
[1768546041955,5.16356865,143.35,143.3,27.90051195]
[1768546042256,5.16356865,143.34,143.3,27.90051195]
[1768546042554,30.96598679,143.36,143.3,27.90051195]
[1768546042753,5.16294606,143.35,143.3,27.90051195]
[1768546042948,5.16294606,143.34,143.3,27.90051195]
[1768546043149,30.96598679,143.36,143.3,27.90051195]
[1768546043350,5.16237232,143.35,143.3,27.90051195]
[1768546043553,5.16237232,143.34,143.3,27.90051195]
[1768546043754,30.96598679,143.36,143.3,27.90051195]
[1768546043949,5.16237232,143.35,143.3,27.90051195]
[1768546044151,5.16237232,143.34,143.3,27.90051195]